lending/lending_fUSD_20260124
["ID","MTS","AMOUNT","RATE_DAILY","PERIOD"]
[403183091,1769253046408,-178.05953076,0.00017973,2]
[403183092,1769253046418,-500.0,0.00017973,2]
[403183093,1769253046427,-160.95253726,0.00017973,2]
[403183094,1769253046436,-150.0,0.00017973,2]
[403183095,1769253046445,-500.0,0.00017973,2]
[403183096,1769253046455,-500.0,0.00017973,2]
[403183097,1769253046464,-500.0,0.00017973,2]
[403183098,1769253046473,-500.0,0.00017973,2]
[403183099,1769253046483,-500.0,0.00017973,2]
[403183100,1769253046493,-160.03318119,0.00017973,2]
[403183101,1769253046502,-500.0,0.00017973,2]
[403183102,1769253046511,-159.93585942,0.00017973,2]
[403183103,1769253046521,-500.0,0.00017973,2]
[403183104,1769253046530,-374.80331045,0.00017973,2]
[403183105,1769253046539,-500.0,0.00017973,2]
[403183106,1769253046549,-500.0,0.00017973,2]
[403183107,1769253046558,-612.98031238,0.00017973,2]
[403183108,1769253046568,-500.0,0.00017973,2]
[403183109,1769253046578,-500.0,0.00017973,2]
[403183110,1769253046587,-333.14308792,0.00017973,2]
[403183111,1769253046596,-199.93008886,0.00017973,2]
[403183112,1769253046606,-500.0,0.00017973,2]
[403183113,1769253046615,-157.31967869,0.00017973,2]
[403183114,1769253046625,-162.86883444,0.00017973,2]
[403183115,1769253046639,-500.0,0.00017973,2]
[403183116,1769253046649,-300.0,0.00017973,2]
[403183117,1769253046658,-500.0,0.00017973,2]
[403183118,1769253046668,-500.0,0.00017973,2]
[403183119,1769253046677,-500.0,0.00017973,2]
[403183120,1769253046687,-501.00015467,0.00017973,2]
[403183121,1769253046696,-500.0,0.00017973,2]
[403183122,1769253046707,-500.0,0.00017973,2]
[403183123,1769253046717,-500.0,0.00017973,2]
[403183124,1769253046727,-368.01966019,0.00017973,2]
[403183125,1769253046736,-500.0,0.00017973,2]
[403183126,1769253046745,-500.0,0.00017973,2]
[403183127,1769253046754,-500.0,0.00017973,2]
[403183128,1769253046764,-574.71375417,0.00017973,2]
[403183129,1769253046773,-500.0,0.00017973,2]
[403183130,1769253046782,-500.0,0.00017973,2]
[403183131,1769253046792,-500.0,0.00017973,2]
[403183132,1769253046802,-500.0,0.00017973,2]
[403183133,1769253046811,-500.0,0.00017973,2]
[403183134,1769253046824,-503.53750064,0.00017973,2]
[403183135,1769253046845,-500.0,0.00017973,2]
[403183136,1769253046859,-500.0,0.00017973,2]
[403183137,1769253046868,-500.0,0.00017973,2]
[403183138,1769253046879,-150.0,0.00017973,2]
[403183139,1769253046888,-153.7074367,0.00017981,2]
[403183140,1769253046897,-500.0,0.00017982,2]
[403183141,1769253046907,-346.92554585,0.00017986,2]
[403183142,1769253046916,-226.31938823,0.00017987,2]
[403183143,1769253046929,-599.60298507,0.00017987,2]
[403183144,1769253046938,-721.12765535,0.00017987,2]
[403183145,1769253046947,-209.40437684,0.00017988,2]
[403183146,1769253046957,-214.96623226,0.0001799,2]
[403183147,1769253046967,-214.96623226,0.0001799,2]
[403183148,1769253046977,-56109.1967625,0.00017991,2]
[403183149,1769253046987,-150.0,0.00017991,2]
[403183150,1769253046997,-151.0,0.00017997,2]
[403183151,1769253047006,-249.48172896,0.00017999,2]
[403183152,1769253047015,-500.0,0.00017999,2]
[403183153,1769253047025,-500.0,0.00017999,2]
[403183154,1769253047034,-500.0,0.00017999,2]
[403183155,1769253047043,-500.0,0.00017999,2]
[403183156,1769253047056,-500.0,0.00017999,2]
[403183157,1769253047066,-500.0,0.00017999,2]
[403183158,1769253047078,-500.0,0.00017999,2]
[403183159,1769253047087,-500.0,0.00017999,2]
[403183160,1769253047096,-500.0,0.00017999,2]
[403183161,1769253047106,-500.0,0.00017999,2]
[403183162,1769253047115,-500.0,0.00017999,2]
[403183163,1769253047124,-279.88786279,0.00017999,2]
[403183164,1769253047133,-500.0,0.00017999,2]
[403183165,1769253047142,-500.0,0.00017999,2]
[403183166,1769253047151,-500.0,0.00017999,2]
[403183167,1769253047161,-500.0,0.00017999,2]
[403183168,1769253047170,-500.0,0.00017999,2]
[403183169,1769253047179,-500.0,0.00017999,2]
[403183170,1769253047189,-500.0,0.00017999,2]
[403183171,1769253047198,-500.0,0.00017999,2]
[403183172,1769253047207,-311.60217601,0.00017999,2]
[403183173,1769253047219,-300.0,0.00017999,2]
[403183174,1769253047228,-150.0,0.00017999,2]
[403183175,1769253047237,-150.0,0.00017999,2]
[403183176,1769253047246,-2551931.20614089,0.00018,2]
[403183177,1769253047255,-500.0,0.00018,2]
[403183178,1769253047264,-500.0,0.00018,2]
[403183179,1769253047273,-500.0,0.00018,2]
[403183180,1769253047283,-500.0,0.00018,2]
[403183181,1769253047292,-500.0,0.00018,2]
[403183182,1769253047301,-500.0,0.00018,2]
[403183183,1769253047311,-500.0,0.00018,2]
[403183184,1769253047319,-294.84321578,0.00018,2]
[403183185,1769253047329,-356.66,0.00018,4]
[403183186,1769253047338,-4241977.91092941,0.00018,2]
[403183187,1769253049457,-1.7e-07,0.00018,2]
[403183188,1769253049496,-363276.48385909,0.00018,2]
[403183189,1769253050184,-378.00494286,0.00012205,2]
[403183190,1769253050227,-518.56375058,0.00012205,2]
[403183191,1769253052265,-70.11906136,0.00012205,2]
[403183192,1769253052372,-331.82655358,0.00012205,2]
[403183193,1769253052669,-9527.9453237,0.00012205,2]
[403183194,1769253081610,-247.856643,0.00012223,2]
[403183195,1769253083680,-252.143357,0.00012223,2]
[403183196,1769253083702,-9.71222381,0.00012223,2]
[403183197,1769253085210,-300.0,0.00012223,2]
[403183198,1769253087305,-190.28777619,0.00012223,2]
[403183199,1769253087327,-84.32654129,0.00012223,2]
[403183200,1769253089282,-65.67345871,0.00012223,2]
[403183201,1769253089305,-150.0,0.00012223,2]
[403183202,1769253089327,-235.40616196,0.00012277,2]
[403183203,1769253091526,-260.85016,0.00012277,2]
[403183204,1769253093026,-3.74367804,0.00012277,2]
[403183205,1769253093047,-164.89558838,0.00012277,2]
[403183206,1769253093070,-130.21296323,0.00012277,2]
[403183207,1769253095049,-297.23533721,0.00012277,2]
[403183208,1769253097005,-204.35792503,0.00012277,2]
[403183209,1769253097026,-37.42006241,0.00012277,2]
[403183210,1769253098904,-305.20281656,0.00012277,2]
[403183211,1769253100944,-152.90282489,0.00012277,2]
[403183212,1769253102396,-11.21103645,0.00012277,2]
[403183213,1769253102419,-242.71801423,0.00012277,2]
[403183214,1769253104963,-175.25151122,0.00012277,2]
[403183215,1769253104986,-158.56715665,0.00012277,2]
[403183216,1769253105009,-44.19423404,0.00012277,2]
[403183217,1769253106649,-156.41500086,0.00012277,2]
[403183218,1769253110182,-185.37093425,0.00012277,2]
[403183219,1769253111725,-114.01983085,0.00012277,2]
[403183220,1769253111747,-116.02909542,0.00012277,2]
[403183221,1769253113258,-206.04530438,0.00012277,2]
[403183222,1769253115291,-177.9256002,0.00012277,2]
[403183223,1769253115312,-111.10184836,0.00012277,2]
[403183224,1769253117523,-140.84602565,0.00012277,2]
[403183225,1769253117546,-148.74579568,0.00012277,2]
[403183226,1769253119102,-174.29985516,0.00012277,2]
[403183227,1769253120944,-165.51566,0.00012277,2]
[403183228,1769253122399,-300.0,0.00012276,2]
[403183229,1769253122421,-11.43868916,0.00012277,2]
[403183230,1769253122444,-118.20229514,0.00012277,2]
[403183231,1769253128321,-150.0,0.00012276,2]
[403183232,1769253128348,-116.682377,0.00012277,2]
[403183233,1769253136644,813.663181,0.00012214,2]
[403183234,1769253144897,-300.0,0.00012276,2]
[403183235,1769253144927,-136.85410014,0.00012277,2]
[403183236,1769253144959,-500.0,0.00012277,2]
[403183237,1769253144989,-500.0,0.00012277,2]
[403183238,1769253145018,-500.0,0.00012277,2]
[403183239,1769253145049,-458.79321992,0.00012277,2]
[403183240,1769253146323,-248.98347385,0.00012278,2]
[403183241,1769253148671,-208.67119819,0.00012278,2]
[403183242,1769253162278,168.65419639,0.00012178,2]
[403183243,1769253196236,209.84691117,0.00012178,2]
[403183244,1769253200356,1200.0,0.00012277,2]
[403183245,1769253261582,465.33958544,0.00012178,2]
[403183246,1769253277364,194.76697249,0.00012178,2]
[403183247,1769253279918,500.0,0.00012176,2]
[403183248,1769253301217,300.0,0.00012277,2]
[403183249,1769253301256,300.0,0.00012277,2]
[403183250,1769253301389,1200.0,0.00012277,2]
[403183251,1769253302152,176.3635118,0.00012277,2]
[403183252,1769253302909,150.0,0.00012277,2]
[403183253,1769253306449,300.0,0.00012277,2]
[403183254,1769253309224,43.74418259,0.00012277,2]
[403183255,1769253309256,710.34525314,0.00012277,2]
[403183256,1769253309314,754.08943573,0.00012277,2]
[403183257,1769253309363,754.08943573,0.00012277,2]
[403183258,1769253309412,754.08943573,0.00012277,2]
[403183259,1769253309460,754.08943573,0.00012277,2]
[403183260,1769253309512,754.08943573,0.00012277,2]
[403183261,1769253309565,754.08943573,0.00012277,2]
[403183262,1769253309610,754.08943573,0.00012277,2]
[403183263,1769253309666,754.08943573,0.00012277,2]
[403183264,1769253309714,754.08943573,0.00012277,2]
[403183265,1769253309760,754.08943573,0.00012277,2]
[403183266,1769253309811,754.08943573,0.00012277,2]
[403183267,1769253310346,754.08943573,0.00012277,2]
[403183268,1769253310385,240.5915181,0.00012277,2]
[403183269,1769253310413,513.49791763,0.00012277,2]
[403183270,1769253310457,754.08943573,0.00012277,2]
[403183271,1769253310495,754.08943573,0.00012277,2]
[403183272,1769253310535,754.08943573,0.00012277,2]
[403183273,1769253310573,754.08943573,0.00012277,2]
[403183274,1769253310617,754.08943573,0.00012277,2]
[403183275,1769253310656,754.08943573,0.00012277,2]
[403183276,1769253310696,754.08943573,0.00012277,2]
[403183277,1769253310735,754.08943573,0.00012277,2]
[403183278,1769253310777,754.08943573,0.00012277,2]
[403183279,1769253310817,754.08943573,0.00012277,2]
[403183280,1769253310855,754.08943573,0.00012277,2]
[403183281,1769253310894,754.08943573,0.00012277,2]
[403183282,1769253310934,437.43885361,0.00012277,2]
[403183283,1769253310959,316.65058212,0.00012277,2]
[403183284,1769253311006,754.08943573,0.00012277,2]
[403183285,1769253311056,754.08943573,0.00012277,2]
[403183286,1769253311101,754.08943573,0.00012277,2]
[403183287,1769253311141,754.08943573,0.00012277,2]
[403183288,1769253311180,754.08943573,0.00012277,2]
[403183289,1769253311220,754.08943573,0.00012277,2]
[403183290,1769253311259,754.08943573,0.00012277,2]
[403183291,1769253311298,754.08943573,0.00012277,2]
[403183292,1769253311338,754.08943573,0.00012277,2]
[403183293,1769253311377,754.08943573,0.00012277,2]
[403183294,1769253311415,754.08943573,0.00012277,2]
[403183295,1769253311458,754.08943573,0.00012277,2]
[403183296,1769253311497,634.28618912,0.00012277,2]
[403183298,1769253390482,-227.80415376,0.00012178,2]
[403183299,1769253390910,-261.76681652,0.00012178,2]
[403183300,1769253408616,227.744494,0.00012216,2]
[403183301,1769253421468,300.0,0.00012277,2]
[403183302,1769253425733,200.0,0.00012278,2]
[403183303,1769253429456,500.0,0.00012176,2]
[403183304,1769253429565,8772.265506,0.00012178,2]
[403183305,1769253433940,-1663.81017422,0.00012178,2]
[403183306,1769253433970,-151.0,0.00012278,2]
[403183307,1769253433999,-151.0,0.00012278,2]
[403183308,1769253434028,-151.0,0.00012278,2]
[403183309,1769253434061,-151.0,0.00012278,2]
[403183310,1769253434090,-151.0,0.00012278,2]
[403183311,1769253434118,-151.0,0.00012278,2]
[403183312,1769253434146,-200.0,0.00012278,2]
[403183313,1769253434175,-151.0,0.00012278,2]
[403183314,1769253434711,151.0,0.00012278,2]
[403183315,1769253434874,200.0,0.00012278,2]
[403183316,1769253434912,151.0,0.00012278,2]
[403183317,1769253435472,151.0,0.00012278,2]
[403183318,1769253436070,151.0,0.00012278,2]
[403183319,1769253436659,151.0,0.00012278,2]
[403183320,1769253436698,153.57409006,0.00012278,2]
[403183321,1769253480173,-429.89377745,0.00012178,2]
[403183322,1769253482935,-211.35592782,0.00012178,2]
[403183323,1769253486676,-155.82606753,0.00012178,2]
[403183324,1769253542279,797.075773,0.00012117,2]
[403183325,1769253544413,-12.45293097,0.00012178,2]
[403183326,1769253544443,-250.0,0.00012227,2]
[403183327,1769253544473,-250.0,0.00012257,2]
[403183328,1769253544503,-300.0,0.00012276,2]
[403183329,1769253544537,-300.0,0.00012276,2]
[403183330,1769253544567,-500.0,0.00012276,2]
[403183331,1769253544596,-197.16346809,0.00012277,2]
[403183332,1769253544625,-500.0,0.00012277,2]
[403183333,1769253544657,-500.0,0.00012277,2]
[403183334,1769253544689,-500.0,0.00012277,2]
[403183335,1769253544721,-500.0,0.00012277,2]
[403183336,1769253544754,-500.0,0.00012277,2]
[403183337,1769253544787,-500.0,0.00012277,2]
[403183338,1769253545075,-500.0,0.00012277,2]
[403183339,1769253545109,-500.0,0.00012277,2]
[403183340,1769253545147,-500.0,0.00012277,2]
[403183341,1769253545182,-500.0,0.00012277,2]
[403183342,1769253545214,-500.0,0.00012277,2]
[403183343,1769253545246,-500.0,0.00012277,2]
[403183344,1769253545278,-500.0,0.00012277,2]
[403183345,1769253545309,-500.0,0.00012277,2]
[403183346,1769253545340,-500.0,0.00012277,2]
[403183347,1769253545372,-500.0,0.00012277,2]
[403183348,1769253545553,-500.0,0.00012277,2]
[403183349,1769253545586,-500.0,0.00012277,2]
[403183350,1769253545619,-500.0,0.00012277,2]
[403183351,1769253545652,-500.0,0.00012277,2]
[403183352,1769253545685,-500.0,0.00012277,2]
[403183353,1769253545718,-500.0,0.00012277,2]
[403183354,1769253545750,-500.0,0.00012277,2]
[403183355,1769253545782,-500.0,0.00012277,2]
[403183356,1769253545814,-500.0,0.00012277,2]
[403183357,1769253545846,-500.0,0.00012277,2]
[403183358,1769253545997,-500.0,0.00012277,2]
[403183359,1769253546030,-500.0,0.00012277,2]
[403183360,1769253546063,-500.0,0.00012277,2]
[403183361,1769253546097,-500.0,0.00012277,2]
[403183362,1769253546137,-500.0,0.00012277,2]
[403183363,1769253546173,-500.0,0.00012277,2]
[403183364,1769253546206,-500.0,0.00012277,2]
[403183365,1769253546243,-500.0,0.00012277,2]
[403183366,1769253546277,-500.0,0.00012277,2]
[403183367,1769253546310,-500.0,0.00012277,2]
[403183368,1769253546660,-500.0,0.00012277,2]
[403183369,1769253546703,-500.0,0.00012277,2]
[403183370,1769253546737,-500.0,0.00012277,2]
[403183371,1769253546768,-500.0,0.00012277,2]
[403183372,1769253546800,-500.0,0.00012277,2]
[403183373,1769253546830,-500.0,0.00012277,2]
[403183374,1769253546864,-500.0,0.00012277,2]
[403183375,1769253546894,-500.0,0.00012277,2]
[403183376,1769253546926,-500.0,0.00012277,2]
[403183377,1769253546957,-500.0,0.00012277,2]
[403183378,1769253547027,-500.0,0.00012277,2]
[403183379,1769253547058,-500.0,0.00012277,2]
[403183380,1769253547091,-500.0,0.00012277,2]
[403183381,1769253547122,-500.0,0.00012277,2]
[403183382,1769253547156,-500.0,0.00012277,2]
[403183383,1769253547187,-273.92406156,0.00012277,2]
[403183384,1769253547218,-500.0,0.00012277,2]
[403183385,1769253547252,-500.0,0.00012277,2]
[403183386,1769253547286,-500.0,0.00012277,2]
[403183387,1769253547320,-500.0,0.00012277,2]
[403183388,1769253547469,-500.0,0.00012277,2]
[403183389,1769253547500,-585.99215839,0.00012277,2]
[403183390,1769253547532,-500.0,0.00012277,2]
[403183391,1769253547564,-500.0,0.00012277,2]
[403183392,1769253547595,-500.0,0.00012277,2]
[403183393,1769253547624,-500.0,0.00012277,2]
[403183394,1769253547655,-500.0,0.00012277,2]
[403183395,1769253547686,-500.0,0.00012277,2]
[403183396,1769253547716,-500.0,0.00012277,2]
[403183397,1769253547747,-328.02568322,0.00012277,2]
[403183398,1769253547881,-171.97431678,0.00012277,2]
[403183399,1769253547912,-500.0,0.00012277,2]
[403183400,1769253547943,-500.0,0.00012277,2]
[403183401,1769253547974,-500.0,0.00012277,2]
[403183402,1769253548004,-400.0,0.00012277,2]
[403183403,1769253548036,-500.0,0.00012277,2]
[403183404,1769253548067,-500.0,0.00012277,2]
[403183405,1769253548098,-500.0,0.00012277,2]
[403183406,1769253548130,-500.0,0.00012277,2]
[403183407,1769253548164,-500.0,0.00012277,2]
[403183408,1769253548196,-356.06136644,0.00012277,2]
[403183409,1769253548295,-143.93863356,0.00012277,2]
[403183410,1769253548326,-500.0,0.00012277,2]
[403183411,1769253548358,-500.0,0.00012277,2]
[403183412,1769253548391,-500.0,0.00012277,2]
[403183413,1769253548424,-500.0,0.00012277,2]
[403183414,1769253548455,-500.0,0.00012277,2]
[403183415,1769253548487,-500.0,0.00012277,2]
[403183416,1769253548519,-500.0,0.00012277,2]
[403183417,1769253548551,-500.0,0.00012277,2]
[403183418,1769253548583,-500.0,0.00012277,2]
[403183419,1769253548613,-212.13273288,0.00012277,2]
[403183420,1769253550188,-287.86726712,0.00012277,2]
[403183421,1769253550222,-500.0,0.00012277,2]
[403183422,1769253550251,-500.0,0.00012277,2]
[403183423,1769253550280,-408.43965614,0.00012277,2]
[403183424,1769253550310,-500.0,0.00012277,2]
[403183425,1769253550338,-500.0,0.00012277,2]
[403183426,1769253550370,-500.0,0.00012277,2]
[403183427,1769253550398,-150.0,0.00012277,2]
[403183428,1769253550426,-1200.0,0.00012277,2]
[403183429,1769253550454,-151.0,0.00012278,2]
[403183430,1769253550482,-151.0,0.00012278,2]
[403183431,1769253551277,-500.0,0.00012278,2]
[403183432,1769253551306,-151.0,0.00012278,2]
[403183433,1769253551334,-151.0,0.00012278,2]
[403183434,1769253551363,-151.0,0.00012278,2]
[403183435,1769253551391,-151.0,0.00012278,2]
[403183436,1769253551419,-151.0,0.00012278,2]
[403183437,1769253551447,-151.0,0.00012278,2]
[403183438,1769253551477,-500.0,0.00012278,2]
[403183439,1769253551506,-500.0,0.00012278,2]
[403183440,1769253551534,-500.0,0.00012278,2]
[403183441,1769253551563,-500.0,0.00012278,2]
[403183442,1769253551591,-500.0,0.00012278,2]
[403183443,1769253551619,-500.0,0.00012278,2]
[403183444,1769253551646,-500.0,0.00012278,2]
[403183445,1769253551805,-500.0,0.00012278,2]
[403183446,1769253551833,-500.0,0.00012278,2]
[403183447,1769253551862,-500.0,0.00012278,2]
[403183448,1769253551890,-500.0,0.00012278,2]
[403183449,1769253551918,-500.0,0.00012278,2]
[403183450,1769253551946,-500.0,0.00012278,2]
[403183451,1769253551975,-500.0,0.00012278,2]
[403183452,1769253552003,-500.0,0.00012278,2]
[403183453,1769253552031,-500.0,0.00012278,2]
[403183454,1769253552060,-500.0,0.00012278,2]
[403183455,1769253553477,196.02,0.00010732,2]
[403183456,1769253553541,-500.0,0.00012278,2]
[403183457,1769253553571,-500.0,0.00012278,2]
[403183458,1769253553600,-500.0,0.00012278,2]
[403183459,1769253553628,-500.0,0.00012278,2]
[403183460,1769253553657,-500.0,0.00012278,2]
[403183461,1769253553685,-151.0,0.00012278,2]
[403183462,1769253553715,-151.0,0.00012278,2]
[403183463,1769253553744,-151.0,0.00012278,2]
[403183464,1769253553773,-151.0,0.00012278,2]
[403183465,1769253553801,-151.0,0.00012278,2]
[403183466,1769253553829,-151.0,0.00012278,2]
[403183467,1769253553857,-151.0,0.00012278,2]
[403183468,1769253553886,-151.0,0.00012278,2]
[403183469,1769253553914,-151.0,0.00012278,2]
[403183470,1769253553944,-151.0,0.00012278,2]
[403183471,1769253553974,-151.0,0.00012278,2]
[403183472,1769253560678,-4243.88033566,0.00012278,2]
[403183473,1769253562655,-10000.01,0.00012278,2]
[403183474,1769253562753,-10000.01,0.00012278,2]
[403183475,1769253562968,-10000.01,0.00012278,2]
[403183476,1769253563070,-10000.01,0.00012278,2]
[403183477,1769253563210,-10000.01,0.00012278,2]
[403183478,1769253585517,-217.69248067,0.00012176,2]
[403183479,1769253587405,-251.01652615,0.00012176,2]
[403183480,1769253615232,-188.34578917,0.00012176,2]
[403183481,1769253618413,-468.709007,0.00012115,2]
[403183482,1769253618436,-4.95295079,0.00012176,2]
[403183483,1769253623652,-56.70126004,0.00012176,2]
[403183484,1769253623674,-108.81439996,0.00012176,2]
[403183485,1769253625243,-165.51566,0.00012176,2]
[403183486,1769253627306,-225.66994004,0.00012176,2]
[403183487,1769253627330,-0.13425842,0.00012176,2]
[403183488,1769253629301,-173.65684073,0.00012176,2]
[403183489,1769253632212,-219.55815423,0.00012176,2]
[403183490,1769253632238,-31.29099318,0.00012176,2]
[403183491,1769253632264,-10.68789046,0.00012178,2]
[403183492,1769253634246,-320.1522707,0.00012178,2]
[403183493,1769253637877,-242.95908012,0.00012178,2]
[403183494,1769253660172,-83.90178202,0.00012178,2]
[403183495,1769253660196,-140.73720994,0.00012178,2]
[403183496,1769253662838,-189.38748428,0.00012178,2]
[403183497,1769253665477,-240.41519322,0.00012178,2]
[403183498,1769253667960,-406.75450784,0.00012178,2]
[403183499,1769253669136,-255.88840929,0.00012178,2]
[403183500,1769253670668,-220.72740043,0.00012178,2]
[403183501,1769253674767,-653.58755608,0.00012178,2]
[403183502,1769253676269,-297.33831714,0.00012178,2]
[403183503,1769253678313,-225.63949057,0.00012178,2]
[403183504,1769253680217,-165.51566,0.00012178,2]
[403183505,1769253683440,-427.16872247,0.00012178,2]
[403183506,1769253685482,-186.5865895,0.00012178,2]
[403183507,1769253687543,-410.43469677,0.00012178,2]
[403183508,1769253689058,-280.18204348,0.00012178,2]
[403183509,1769253691568,-322.08885429,0.00012178,2]
[403183510,1769253692474,182.286,0.00012032,2]
[403183511,1769253692524,2313.729,0.00012032,2]
[403183512,1769253694246,-177.57814651,0.00012178,2]
[403183513,1769253697842,5524.210228,0.00012117,2]
[403183514,1769253699520,-222.84735836,0.00012178,2]
[403183515,1769253703611,-49.94040237,0.00012178,2]
[403183516,1769253703642,-1042.90230909,0.00012268,2]
[403183517,1769253703670,-300.0,0.00012276,2]
[403183518,1769253703699,-300.0,0.00012277,2]
[403183519,1769253703727,-1200.0,0.00012277,2]
[403183520,1769253703756,-183.95516542,0.00012277,2]
[403183521,1769253703786,-377.94059275,0.00012277,2]
[403183522,1769253703816,-383.65677568,0.00012277,2]
[403183523,1769253703844,-292.79481976,0.00012277,2]
[403183524,1769253703873,-150.0,0.00012277,2]
[403183525,1769253707912,222.53705236,0.00012177,2]
[403183526,1769253713978,222.53705236,0.00012178,2]
[403183527,1769253721212,300.0,0.00012277,2]
[403183528,1769253725878,200.0,0.00012278,2]
[403183529,1769253728014,198.9795,0.00012178,2]
[403183531,1769253731749,293.57626514,0.00012278,2]
[403183532,1769253731771,206.42373486,0.00012278,2]
[403183533,1769253731815,500.0,0.00012278,2]
[403183534,1769253732353,500.0,0.00012278,2]
[403183535,1769253732408,500.0,0.00012278,2]
[403183536,1769253732937,500.0,0.00012278,2]
[403183537,1769253733315,500.0,0.00012278,2]
[403183538,1769253733628,500.0,0.00012278,2]
[403183539,1769253733675,500.0,0.00012278,2]
[403183540,1769253734251,500.0,0.00012278,2]
[403183541,1769253734373,500.0,0.00012278,2]
[403183542,1769253734838,500.0,0.00012278,2]
[403183543,1769253734991,500.0,0.00012278,2]
[403183544,1769253735487,500.0,0.00012278,2]
[403183545,1769253735611,-4335.74116728,0.00012278,2]
[403183546,1769253735662,500.0,0.00012278,2]
[403183547,1769253735702,-9500.01,0.00012278,2]
[403183548,1769253736047,500.0,0.00012278,2]
[403183549,1769253736081,-9500.01,0.00012278,2]
[403183550,1769253736176,-10000.01,0.00012278,2]
[403183551,1769253736223,500.0,0.00012278,2]
[403183552,1769253736313,-9500.01,0.00012278,2]
[403183553,1769253736640,500.0,0.00012278,2]
[403183554,1769253736825,500.0,0.00012278,2]
[403183555,1769253738153,-500.0,0.00012278,2]
[403183556,1769253738181,-500.0,0.00012278,2]
[403183557,1769253738208,-500.0,0.00012278,2]
[403183558,1769253738242,-500.0,0.00012278,2]
[403183559,1769253738356,-5000.01,0.00012278,2]
[403183560,1769253738381,-10000.01,0.00012278,2]
[403183561,1769253755584,-532.27622552,0.00012178,2]
[403183562,1769253755612,-151.0,0.00012278,2]
[403183563,1769253755640,-151.0,0.00012278,2]
[403183564,1769253755668,-151.0,0.00012278,2]
[403183565,1769253755694,-151.0,0.00012278,2]
[403183566,1769253755721,-151.0,0.00012278,2]
[403183567,1769253755749,-151.0,0.00012278,2]
[403183568,1769253755776,-151.0,0.00012278,2]
[403183569,1769253755803,-151.0,0.00012278,2]
[403183570,1769253755830,-151.0,0.00012278,2]
[403183571,1769253755857,-151.0,0.00012278,2]
[403183572,1769253755883,-151.0,0.00012278,2]
[403183573,1769253755910,-151.0,0.00012278,2]
[403183574,1769253755936,-200.0,0.00012278,2]
[403183575,1769253755964,-151.0,0.00012278,2]
[403183576,1769253755990,-151.0,0.00012278,2]
[403183577,1769253756019,-204.10887185,0.00012278,2]
[403183578,1769253756046,-500.0,0.00012278,2]
[403183579,1769253756425,-2899.23980526,0.00012278,2]
[403183580,1769253756471,-10000.01,0.00012278,2]
[403183581,1769253756489,-10000.01,0.00012278,2]
[403183582,1769253756518,-10000.01,0.00012278,2]
[403183583,1769253756539,-10000.01,0.00012278,2]
[403183584,1769253780397,-180.14659574,0.00012178,2]
[403183585,1769253781947,-300.0,0.00012177,2]
[403183586,1769253781970,-105.0,0.00012178,2]
[403183587,1769253783491,-385.83173004,0.00012178,2]
[403183588,1769253786160,-169.88456738,0.00012178,2]
[403183589,1769253788882,-202.72394855,0.00012178,2]
[403183590,1769253790919,-13.24595829,0.00012178,2]
[403183591,1769253790946,-149.29793195,0.00012178,2]
[403183592,1769253793038,-390.8514742,0.00012178,2]